[Event "Titled Tuesday Blitz November 29 Early 2022"]
[White "Zivkovic, Nemanja"]
[Black "Bacrot, Etienne"]
[WhiteFideId "942154"]
[BlackFideId "605506"]
[WhiteElo "2706"]
[BlackElo "2861"]
[Result "0-1"]
[Round "06"]
[TimeControl "180+1"]
[Date "2022.11.30"]
[WhiteClock "0:00:35"]
[BlackClock "0:00:13"]

1. e4 {[%clk 0:03:00]}  g6 {[%clk 0:03:00]} 2. d4 {[%clk 0:03:01]}  Bg7 {[%clk 0:03:00]} 3. Nf3 {[%clk 0:02:58]}  a6 {[%clk 0:03:00]} 4. c3 {[%clk 0:02:55]}  d6 {[%clk 0:03:00]} 5. Bd3 {[%clk 0:02:51]}  b5 {[%clk 0:02:58]} 6. O-O {[%clk 0:02:51]}  Bb7 {[%clk 0:02:58]} 7. a4 {[%clk 0:02:49]}  c6 {[%clk 0:02:56]} 8. Nbd2 {[%clk 0:02:47]}  Nd7 {[%clk 0:02:56]} 9. Re1 {[%clk 0:02:44]}  e5 {[%clk 0:02:54]} 10. axb5 {[%clk 0:02:34]}  axb5 {[%clk 0:02:54]} 11. Rxa8 {[%clk 0:02:35]}  Bxa8 {[%clk 0:02:55]} 12. dxe5 {[%clk 0:02:34]}  Nxe5 {[%clk 0:02:48]} 13. Nxe5 {[%clk 0:02:31]}  dxe5 {[%clk 0:02:48]} 14. Nb3 {[%clk 0:02:25]}  Nf6 {[%clk 0:02:45]} 15. Be3 {[%clk 0:02:21]}  O-O {[%clk 0:02:44]} 16. Qc2 {[%clk 0:02:17]}  Bb7 {[%clk 0:02:38]} 17. Nc5 {[%clk 0:02:16]}  Bc8 {[%clk 0:02:38]} 18. b4 {[%clk 0:02:14]}  Ng4 {[%clk 0:02:37]} 19. Bc1 {[%clk 0:02:12]}  Qh4 {[%clk 0:02:16]} 20. h3 {[%clk 0:02:09]}  Nf6 {[%clk 0:02:16]} 21. Bf1 {[%clk 0:02:04]}  Nd7 {[%clk 0:02:01]} 22. Nxd7 {[%clk 0:01:59]}  Bxd7 {[%clk 0:02:00]} 23. c4 {[%clk 0:02:00]}  Qe7 {[%clk 0:01:54]} 24. Qb3 {[%clk 0:01:54]}  Be6 {[%clk 0:01:51]} 25. Qc3 {[%clk 0:01:54]}  Rc8 {[%clk 0:01:49]} 26. Be3 {[%clk 0:01:54]}  Bf8 {[%clk 0:01:46]} 27. Bc5 {[%clk 0:01:51]}  Qg5 {[%clk 0:01:43]} 28. Bxf8 {[%clk 0:01:36]}  Kxf8 {[%clk 0:01:43]} 29. cxb5 {[%clk 0:01:30]}  cxb5 {[%clk 0:01:43]} 30. Qd3 {[%clk 0:01:31]}  Bc4 {[%clk 0:01:33]} 31. Qd6+ {[%clk 0:01:28]}  Qe7 {[%clk 0:01:31]} 32. Qxe7+ {[%clk 0:01:04]}  Kxe7 {[%clk 0:01:32]} 33. Rc1 {[%clk 0:01:04]}  f5 {[%clk 0:00:40]} 34. Bxc4 {[%clk 0:00:56]}  Rxc4 {[%clk 0:00:17]} 35. Rxc4 {[%clk 0:00:48]}  bxc4 {[%clk 0:00:17]} 36. Kf1 {[%clk 0:00:47]}  fxe4 {[%clk 0:00:12]} 37. Ke2 {[%clk 0:00:46]}  Kd6 {[%clk 0:00:13]} 38. Kd2 {[%clk 0:00:42]}  Kc6 {[%clk 0:00:13]} 39. g4 {[%clk 0:00:36]}  Kb5 {[%clk 0:00:12]} 40. Kc3 {[%clk 0:00:35]}  g5 {[%clk 0:00:13]} 0-1


[Site "https://www.chess.com"]

[Event "Titled Tuesday Blitz November 29 Early 2022"]
[White "Abasov, Nijat"]
[Black "Boros, Denes"]
[WhiteFideId "13402960"]
[BlackFideId "722340"]
[WhiteElo "2962"]
[BlackElo "2796"]
[Result "1-0"]
[Round "07"]
[TimeControl "180+1"]
[Date "2022.11.30"]
[WhiteClock "0:00:22"]
[BlackClock "0:00:08"]

1. d4 {[%clk 0:02:58]}  Nf6 {[%clk 0:02:57]} 2. Nf3 {[%clk 0:02:58]}  d6 {[%clk 0:02:55]} 3. g3 {[%clk 0:02:49]}  Bf5 {[%clk 0:02:50]} 4. c4 {[%clk 0:02:47]}  c6 {[%clk 0:02:49]} 5. Nc3 {[%clk 0:02:47]}  Nbd7 {[%clk 0:02:49]} 6. Bg2 {[%clk 0:02:47]}  e5 {[%clk 0:02:49]} 7. Nh4 {[%clk 0:02:45]}  Bg6 {[%clk 0:02:47]} 8. O-O {[%clk 0:02:43]}  Be7 {[%clk 0:02:47]} 9. Nxg6 {[%clk 0:02:42]}  hxg6 {[%clk 0:02:48]} 10. e3 {[%clk 0:02:42]}  Qa5 {[%clk 0:02:47]} 11. d5 {[%clk 0:02:40]}  Rc8 {[%clk 0:02:45]} 12. Bd2 {[%clk 0:02:37]}  Qa6 {[%clk 0:02:43]} 13. b3 {[%clk 0:02:36]}  cxd5 {[%clk 0:02:37]} 14. Nxd5 {[%clk 0:02:37]}  Nxd5 {[%clk 0:02:36]} 15. Bxd5 {[%clk 0:02:38]}  Nf6 {[%clk 0:02:35]} 16. Bg2 {[%clk 0:02:34]}  b5 {[%clk 0:02:33]} 17. cxb5 {[%clk 0:02:14]}  Qxb5 {[%clk 0:02:34]} 18. a4 {[%clk 0:02:15]}  Qd7 {[%clk 0:02:23]} 19. b4 {[%clk 0:02:09]}  d5 {[%clk 0:02:16]} 20. b5 {[%clk 0:02:08]}  O-O {[%clk 0:02:12]} 21. Qb3 {[%clk 0:02:03]}  Bc5 {[%clk 0:02:07]} 22. Rfd1 {[%clk 0:02:00]}  Qf5 {[%clk 0:02:03]} 23. Be1 {[%clk 0:01:58]}  d4 {[%clk 0:02:00]} 24. exd4 {[%clk 0:01:52]}  Bxd4 {[%clk 0:02:01]} 25. Rac1 {[%clk 0:01:52]}  Ng4 {[%clk 0:01:56]} 26. Qf3 {[%clk 0:01:52]}  Qg5 {[%clk 0:01:45]} 27. Rc6 {[%clk 0:01:51]}  Rcd8 {[%clk 0:01:28]} 28. h3 {[%clk 0:01:19]}  Nf6 {[%clk 0:01:05]} 29. h4 {[%clk 0:01:10]}  Qf5 {[%clk 0:01:01]} 30. Qxf5 {[%clk 0:01:11]}  gxf5 {[%clk 0:01:02]} 31. Kf1 {[%clk 0:01:11]}  e4 {[%clk 0:00:56]} 32. Bh3 {[%clk 0:01:10]}  Rd5 {[%clk 0:00:54]} 33. Bxf5 {[%clk 0:01:08]}  Rfd8 {[%clk 0:00:46]} 34. Rc8 {[%clk 0:01:04]}  Rxc8 {[%clk 0:00:39]} 35. Bxc8 {[%clk 0:01:05]}  Rc5 {[%clk 0:00:34]} 36. Rxd4 {[%clk 0:01:03]}  Rxc8 {[%clk 0:00:34]} 37. Bd2 {[%clk 0:01:02]}  Rc2 {[%clk 0:00:31]} 38. Be3 {[%clk 0:01:03]}  Ra2 {[%clk 0:00:29]} 39. Rc4 {[%clk 0:00:57]}  Ng4 {[%clk 0:00:25]} 40. Bxa7 {[%clk 0:00:56]}  f5 {[%clk 0:00:16]} 41. Bd4 {[%clk 0:00:44]}  Nh2+ {[%clk 0:00:14]} 42. Kg2 {[%clk 0:00:34]}  Ng4 {[%clk 0:00:14]} 43. b6 {[%clk 0:00:27]}  Nxf2 {[%clk 0:00:12]} 44. Bxf2 {[%clk 0:00:25]}  e3 {[%clk 0:00:13]} 45. b7 {[%clk 0:00:24]}  Rxf2+ {[%clk 0:00:13]} 46. Kg1 {[%clk 0:00:25]}  Rb2 {[%clk 0:00:13]} 47. Rc8+ {[%clk 0:00:25]}  Kh7 {[%clk 0:00:08]} 48. b8=Q {[%clk 0:00:26]}  e2 {[%clk 0:00:07]} 49. Rh8+ {[%clk 0:00:22]}  Kg6 {[%clk 0:00:08]} 50. Qe8+ {[%clk 0:00:22]} 1-0


[Site "https://www.chess.com"]

[Event "Titled Tuesday Blitz November 29 Early 2022"]
[White "Adnan, Habib"]
[Black "Begunov, Konstantin"]
[WhiteFideId "11202270"]
[BlackFideId "4118510"]
[WhiteElo "2110"]
[BlackElo "2140"]
[Result "1-0"]
[Round "07"]
[TimeControl "180+1"]
[Date "2022.11.30"]
[WhiteClock "0:00:40"]
[BlackClock "0:00:04"]

1. d4 {[%clk 0:03:00]}  d5 {[%clk 0:02:59]} 2. c4 {[%clk 0:02:59]}  c6 {[%clk 0:02:59]} 3. Nf3 {[%clk 0:02:59]}  Nf6 {[%clk 0:03:00]} 4. e3 {[%clk 0:02:59]}  a6 {[%clk 0:02:59]} 5. Bd3 {[%clk 0:02:59]}  Bg4 {[%clk 0:02:59]} 6. Nbd2 {[%clk 0:02:49]}  e6 {[%clk 0:02:59]} 7. b3 {[%clk 0:02:47]}  Nbd7 {[%clk 0:02:58]} 8. Bb2 {[%clk 0:02:47]}  Bd6 {[%clk 0:02:58]} 9. Qc1 {[%clk 0:02:46]}  Qe7 {[%clk 0:02:56]} 10. Ne5 {[%clk 0:02:46]}  Bh5 {[%clk 0:02:54]} 11. f4 {[%clk 0:02:28]}  O-O {[%clk 0:02:52]} 12. O-O {[%clk 0:02:27]}  c5 {[%clk 0:02:44]} 13. Ndf3 {[%clk 0:02:20]}  Rac8 {[%clk 0:02:39]} 14. Qe1 {[%clk 0:01:55]}  cxd4 {[%clk 0:02:27]} 15. exd4 {[%clk 0:01:55]}  dxc4 {[%clk 0:02:26]} 16. bxc4 {[%clk 0:01:54]}  Rfd8 {[%clk 0:02:12]} 17. h3 {[%clk 0:01:46]}  Bb4 {[%clk 0:02:05]} 18. Qe3 {[%clk 0:01:44]}  Ba3 {[%clk 0:01:58]} 19. Bxa3 {[%clk 0:01:43]}  Qe8 {[%clk 0:01:46]} 20. g4 {[%clk 0:01:38]}  Bg6 {[%clk 0:01:45]} 21. f5 {[%clk 0:01:38]}  exf5 {[%clk 0:01:43]} 22. gxf5 {[%clk 0:01:36]}  Bh5 {[%clk 0:01:40]} 23. Rae1 {[%clk 0:01:35]}  Nf8 {[%clk 0:01:30]} 24. Qf4 {[%clk 0:01:31]}  Qa4 {[%clk 0:01:29]} 25. Be7 {[%clk 0:01:27]}  Re8 {[%clk 0:01:10]} 26. Ng4 {[%clk 0:01:22]}  N6d7 {[%clk 0:00:29]} 27. Qg5 {[%clk 0:01:06]}  Bxg4 {[%clk 0:00:24]} 28. Qxg4 {[%clk 0:01:05]}  f6 {[%clk 0:00:20]} 29. Nd2 {[%clk 0:00:59]}  Qxa2 {[%clk 0:00:19]} 30. Re2 {[%clk 0:00:58]}  Qa3 {[%clk 0:00:17]} 31. Be4 {[%clk 0:00:58]}  Rxe7 {[%clk 0:00:15]} 32. Bd5+ {[%clk 0:00:57]}  Kh8 {[%clk 0:00:15]} 33. Rxe7 {[%clk 0:00:57]}  Qxe7 {[%clk 0:00:16]} 34. Kh1 {[%clk 0:00:54]}  Qb4 {[%clk 0:00:15]} 35. Rg1 {[%clk 0:00:54]}  g5 {[%clk 0:00:14]} 36. fxg6 {[%clk 0:00:53]}  hxg6 {[%clk 0:00:14]} 37. Ne4 {[%clk 0:00:51]}  Kg7 {[%clk 0:00:13]} 38. h4 {[%clk 0:00:47]}  Re8 {[%clk 0:00:13]} 39. h5 {[%clk 0:00:45]}  Qb2 {[%clk 0:00:10]} 40. Nd6 {[%clk 0:00:43]}  Re3 {[%clk 0:00:09]} 41. Nf5+ {[%clk 0:00:40]}  Kh8 {[%clk 0:00:07]} 42. Nxe3 {[%clk 0:00:40]}  Qd2 {[%clk 0:00:07]} 43. Qf4 {[%clk 0:00:39]}  Kh7 {[%clk 0:00:04]} 44. hxg6+ {[%clk 0:00:39]}  Kg7 {[%clk 0:00:04]} 45. Nf5+ {[%clk 0:00:39]}  Kh8 {[%clk 0:00:04]} 46. Qxd2 {[%clk 0:00:40]} 1-0


[Site "https://www.chess.com"]

[Event "Titled Tuesday Blitz November 29 Early 2022"]
[White "Aldokhin, Ivan"]
[Black "Ohanyan, Emin"]
[WhiteFideId "24115720"]
[BlackFideId "13312022"]
[WhiteElo "2313"]
[BlackElo "2352"]
[Result "0-1"]
[Round "07"]
[TimeControl "180+1"]
[Date "2022.11.30"]
[WhiteClock "0:00:05"]
[BlackClock "0:00:11"]

1. e4 {[%clk 0:02:52]}  e5 {[%clk 0:02:57]} 2. Nf3 {[%clk 0:02:52]}  Nc6 {[%clk 0:02:57]} 3. Bb5 {[%clk 0:02:52]}  f5 {[%clk 0:02:56]} 4. Bxc6 {[%clk 0:02:43]}  dxc6 {[%clk 0:02:54]} 5. Nc3 {[%clk 0:02:36]}  Nf6 {[%clk 0:02:53]} 6. Qe2 {[%clk 0:02:28]}  Bd6 {[%clk 0:02:52]} 7. d3 {[%clk 0:02:05]}  O-O {[%clk 0:02:32]} 8. Bg5 {[%clk 0:02:04]}  f4 {[%clk 0:02:09]} 9. h3 {[%clk 0:01:50]}  h6 {[%clk 0:02:08]} 10. Bxf6 {[%clk 0:01:48]}  Qxf6 {[%clk 0:02:08]} 11. O-O-O {[%clk 0:01:45]}  c5 {[%clk 0:02:07]} 12. Nd2 {[%clk 0:01:17]}  c6 {[%clk 0:02:04]} 13. Rdf1 {[%clk 0:01:07]}  b5 {[%clk 0:01:57]} 14. g4 {[%clk 0:00:56]}  Qf7 {[%clk 0:01:47]} 15. g5 {[%clk 0:00:30]}  b4 {[%clk 0:01:43]} 16. Ncb1 {[%clk 0:00:19]}  h5 {[%clk 0:01:39]} 17. g6 {[%clk 0:00:18]}  Qxg6 {[%clk 0:01:39]} 18. Nc4 {[%clk 0:00:16]}  Bc7 {[%clk 0:01:38]} 19. Rfg1 {[%clk 0:00:16]}  Qf7 {[%clk 0:01:39]} 20. Rg5 {[%clk 0:00:15]}  Be6 {[%clk 0:01:37]} 21. Nbd2 {[%clk 0:00:14]}  Bd8 {[%clk 0:01:25]} 22. Rxe5 {[%clk 0:00:12]}  f3 {[%clk 0:01:22]} 23. Qe3 {[%clk 0:00:12]}  Bf6 {[%clk 0:01:14]} 24. Rxc5 {[%clk 0:00:12]}  Rad8 {[%clk 0:01:15]} 25. Qxf3 {[%clk 0:00:07]}  Qe7 {[%clk 0:01:07]} 26. Qxh5 {[%clk 0:00:04]}  Bf7 {[%clk 0:01:08]} 27. Qf5 {[%clk 0:00:03]}  Be6 {[%clk 0:01:03]} 28. Qh5 {[%clk 0:00:03]}  Bf7 {[%clk 0:01:02]} 29. Qf5 {[%clk 0:00:03]}  g6 {[%clk 0:00:55]} 30. Rg1 {[%clk 0:00:04]}  Bg7 {[%clk 0:00:49]} 31. Qg5 {[%clk 0:00:04]}  Bf6 {[%clk 0:00:47]} 32. Qh5 {[%clk 0:00:04]}  Bg7 {[%clk 0:00:14]} 33. Rxg6 {[%clk 0:00:03]}  Bxg6 {[%clk 0:00:12]} 34. Qxg6 {[%clk 0:00:04]}  Qxc5 {[%clk 0:00:12]} 35. Ne3 {[%clk 0:00:04]}  Rxf2 {[%clk 0:00:08]} 36. Nf5 {[%clk 0:00:04]}  Rxf5 {[%clk 0:00:08]} 37. Qxf5 {[%clk 0:00:04]}  Qxf5 {[%clk 0:00:08]} 38. exf5 {[%clk 0:00:04]}  Bh6 {[%clk 0:00:09]} 39. Kd1 {[%clk 0:00:04]}  Bxd2 {[%clk 0:00:10]} 40. Kxd2 {[%clk 0:00:05]}  Rd5 {[%clk 0:00:10]} 41. Ke3 {[%clk 0:00:04]}  Rxf5 {[%clk 0:00:10]} 42. Ke4 {[%clk 0:00:05]}  Rh5 {[%clk 0:00:11]} 0-1


[Site "https://www.chess.com"]

[Event "Titled Tuesday Blitz November 29 Early 2022"]
[White "Andrews, Todd"]
[Black "Vysochin, Spartak"]
[WhiteFideId "2012456"]
[BlackFideId "14103516"]
[WhiteElo "2349"]
[BlackElo "2412"]
[Result "1-0"]
[Round "07"]
[TimeControl "180+1"]
[Date "2022.11.30"]
[WhiteClock "0:01:16"]
[BlackClock "0:00:03"]

1. e4 {[%clk 0:03:00]}  c5 {[%clk 0:02:55]} 2. Nf3 {[%clk 0:03:00]}  d6 {[%clk 0:02:55]} 3. d3 {[%clk 0:03:00]}  g6 {[%clk 0:02:54]} 4. g3 {[%clk 0:03:01]}  Bg7 {[%clk 0:02:55]} 5. Bg2 {[%clk 0:03:02]}  Nf6 {[%clk 0:02:55]} 6. O-O {[%clk 0:03:02]}  O-O {[%clk 0:02:56]} 7. Re1 {[%clk 0:03:03]}  Nc6 {[%clk 0:02:56]} 8. c3 {[%clk 0:03:03]}  b5 {[%clk 0:02:54]} 9. d4 {[%clk 0:03:00]}  cxd4 {[%clk 0:02:50]} 10. cxd4 {[%clk 0:03:00]}  Rb8 {[%clk 0:02:49]} 11. d5 {[%clk 0:02:41]}  Ne5 {[%clk 0:02:43]} 12. Nxe5 {[%clk 0:02:40]}  dxe5 {[%clk 0:02:44]} 13. Be3 {[%clk 0:02:39]}  a5 {[%clk 0:02:34]} 14. h3 {[%clk 0:02:33]}  Nd7 {[%clk 0:02:28]} 15. Nc3 {[%clk 0:02:24]}  b4 {[%clk 0:02:25]} 16. Na4 {[%clk 0:02:14]}  Ba6 {[%clk 0:02:11]} 17. Rc1 {[%clk 0:02:14]}  Bb5 {[%clk 0:02:10]} 18. Nc5 {[%clk 0:02:12]}  Nxc5 {[%clk 0:02:09]} 19. Bxc5 {[%clk 0:02:11]}  Qd7 {[%clk 0:02:07]} 20. Qd2 {[%clk 0:02:02]}  Rfc8 {[%clk 0:02:05]} 21. Rc2 {[%clk 0:01:53]}  Rc7 {[%clk 0:01:49]} 22. Rec1 {[%clk 0:01:53]}  Rbc8 {[%clk 0:01:48]} 23. Bb6 {[%clk 0:01:47]}  Rxc2 {[%clk 0:01:47]} 24. Rxc2 {[%clk 0:01:48]}  Rxc2 {[%clk 0:01:30]} 25. Qxc2 {[%clk 0:01:49]}  a4 {[%clk 0:01:24]} 26. Qc5 {[%clk 0:01:47]}  b3 {[%clk 0:01:12]} 27. axb3 {[%clk 0:01:46]}  axb3 {[%clk 0:01:12]} 28. Qb4 {[%clk 0:01:41]}  Qb7 {[%clk 0:01:06]} 29. Bc5 {[%clk 0:01:39]}  Ba6 {[%clk 0:00:59]} 30. Qxb7 {[%clk 0:01:33]}  Bxb7 {[%clk 0:00:59]} 31. Bxe7 {[%clk 0:01:34]}  Bf8 {[%clk 0:00:56]} 32. Bxf8 {[%clk 0:01:33]}  Kxf8 {[%clk 0:00:57]} 33. Bf1 {[%clk 0:01:34]}  f5 {[%clk 0:00:53]} 34. f3 {[%clk 0:01:33]}  fxe4 {[%clk 0:00:47]} 35. fxe4 {[%clk 0:01:34]}  Bc8 {[%clk 0:00:40]} 36. Bc4 {[%clk 0:01:34]}  Bxh3 {[%clk 0:00:40]} 37. Bxb3 {[%clk 0:01:34]}  Bg4 {[%clk 0:00:37]} 38. Bc4 {[%clk 0:01:33]}  Bf3 {[%clk 0:00:36]} 39. Bd3 {[%clk 0:01:32]}  Ke7 {[%clk 0:00:35]} 40. Kf2 {[%clk 0:01:32]}  Bd1 {[%clk 0:00:34]} 41. b4 {[%clk 0:01:32]}  Kd6 {[%clk 0:00:33]} 42. Ke3 {[%clk 0:01:31]}  Bb3 {[%clk 0:00:30]} 43. Bb5 {[%clk 0:01:28]}  h6 {[%clk 0:00:26]} 44. Be8 {[%clk 0:01:28]}  g5 {[%clk 0:00:25]} 45. b5 {[%clk 0:01:23]}  Bc4 {[%clk 0:00:22]} 46. b6 {[%clk 0:01:23]}  Ba6 {[%clk 0:00:20]} 47. Bc6 {[%clk 0:01:23]}  h5 {[%clk 0:00:07]} 48. b7 {[%clk 0:01:17]}  Kc7 {[%clk 0:00:07]} 49. d6+ {[%clk 0:01:18]}  Kb8 {[%clk 0:00:04]} 50. d7 {[%clk 0:01:18]}  h4 {[%clk 0:00:02]} 51. d8=Q+ {[%clk 0:01:18]}  Ka7 {[%clk 0:00:03]} 52. b8=Q# {[%clk 0:01:16]} 1-0


[Site "https://www.chess.com"]

[Event "Titled Tuesday Blitz November 29 Early 2022"]
[White "Aqib Javaid Butt"]
[Black "Jimenez Almeida, Luis David"]
[WhiteFideId "7801262"]
[BlackFideId "22242244"]
[WhiteElo "1659"]
[BlackElo "2158"]
[Result "0-1"]
[Round "07"]
[TimeControl "180+1"]
[Date "2022.11.30"]
[WhiteClock "0:00:32"]
[BlackClock "0:00:52"]

1. d4 {[%clk 0:02:59]}  g6 {[%clk 0:02:25]} 2. Nf3 {[%clk 0:02:59]}  Bg7 {[%clk 0:02:24]} 3. g3 {[%clk 0:02:58]}  f5 {[%clk 0:02:24]} 4. Bg2 {[%clk 0:02:58]}  d6 {[%clk 0:02:24]} 5. O-O {[%clk 0:02:58]}  Nf6 {[%clk 0:02:25]} 6. c4 {[%clk 0:02:55]}  O-O {[%clk 0:02:25]} 7. Nc3 {[%clk 0:02:56]}  Nc6 {[%clk 0:02:26]} 8. d5 {[%clk 0:02:52]}  Ne5 {[%clk 0:02:25]} 9. Nxe5 {[%clk 0:02:47]}  dxe5 {[%clk 0:02:26]} 10. f4 {[%clk 0:02:40]}  e4 {[%clk 0:01:26]} 11. Be3 {[%clk 0:02:34]}  e6 {[%clk 0:01:23]} 12. Bc5 {[%clk 0:01:33]}  Re8 {[%clk 0:01:21]} 13. d6 {[%clk 0:01:30]}  cxd6 {[%clk 0:01:21]} 14. Qxd6 {[%clk 0:01:30]}  Qxd6 {[%clk 0:01:21]} 15. Bxd6 {[%clk 0:01:31]}  Ng4 {[%clk 0:01:21]} 16. Bc5 {[%clk 0:01:14]}  b6 {[%clk 0:01:21]} 17. Bf2 {[%clk 0:01:12]}  Ba6 {[%clk 0:01:20]} 18. Nb5 {[%clk 0:01:04]}  Bxb5 {[%clk 0:01:18]} 19. cxb5 {[%clk 0:01:05]}  Bxb2 {[%clk 0:01:17]} 20. Rab1 {[%clk 0:01:04]}  Bg7 {[%clk 0:01:14]} 21. h3 {[%clk 0:01:04]}  Nxf2 {[%clk 0:01:13]} 22. Kxf2 {[%clk 0:01:04]}  Rac8 {[%clk 0:01:13]} 23. Rfc1 {[%clk 0:00:59]}  Kf7 {[%clk 0:01:12]} 24. e3 {[%clk 0:00:59]}  Ke7 {[%clk 0:01:11]} 25. Bf1 {[%clk 0:00:54]}  Red8 {[%clk 0:01:11]} 26. Ke1 {[%clk 0:00:52]}  Bc3+ {[%clk 0:01:09]} 27. Kf2 {[%clk 0:00:41]}  e5 {[%clk 0:01:02]} 28. Rc2 {[%clk 0:00:36]}  exf4 {[%clk 0:00:53]} 29. Rbc1 {[%clk 0:00:33]}  fxe3+ {[%clk 0:00:53]} 30. Kxe3 {[%clk 0:00:33]}  Bd2+ {[%clk 0:00:52]} 31. Rxd2 {[%clk 0:00:32]}  Rxc1 {[%clk 0:00:52]} 0-1


[Site "https://www.chess.com"]

[Event "Titled Tuesday Blitz November 29 Early 2022"]
[White "Bacrot, Etienne"]
[Black "Pranav, V"]
[WhiteFideId "605506"]
[BlackFideId "25060783"]
[WhiteElo "2866"]
[BlackElo "3002"]
[Result "1-0"]
[Round "07"]
[TimeControl "180+1"]
[Date "2022.11.30"]
[WhiteClock "0:00:19"]
[BlackClock "0:00:02"]

1. e4 {[%clk 0:03:00]}  e5 {[%clk 0:02:59]} 2. Nf3 {[%clk 0:03:01]}  Nc6 {[%clk 0:03:00]} 3. Bb5 {[%clk 0:03:01]}  a6 {[%clk 0:03:00]} 4. Ba4 {[%clk 0:03:01]}  Nf6 {[%clk 0:03:00]} 5. O-O {[%clk 0:03:01]}  b5 {[%clk 0:03:00]} 6. Bb3 {[%clk 0:03:01]}  Bc5 {[%clk 0:03:01]} 7. d3 {[%clk 0:03:00]}  d6 {[%clk 0:03:00]} 8. a4 {[%clk 0:03:00]}  Rb8 {[%clk 0:03:00]} 9. axb5 {[%clk 0:03:01]}  axb5 {[%clk 0:03:01]} 10. Nc3 {[%clk 0:03:01]}  O-O {[%clk 0:03:00]} 11. Be3 {[%clk 0:03:00]}  Bg4 {[%clk 0:02:48]} 12. h3 {[%clk 0:02:56]}  Bh5 {[%clk 0:02:47]} 13. Nd5 {[%clk 0:02:39]}  Nd7 {[%clk 0:02:30]} 14. c3 {[%clk 0:02:28]}  Re8 {[%clk 0:02:25]} 15. d4 {[%clk 0:02:11]}  exd4 {[%clk 0:02:24]} 16. cxd4 {[%clk 0:02:11]}  Bxf3 {[%clk 0:02:11]} 17. gxf3 {[%clk 0:01:56]}  Bb6 {[%clk 0:02:10]} 18. Kh2 {[%clk 0:01:42]}  Nf8 {[%clk 0:01:57]} 19. Nxb6 {[%clk 0:01:25]}  cxb6 {[%clk 0:01:41]} 20. Rg1 {[%clk 0:01:14]}  Ng6 {[%clk 0:01:39]} 21. f4 {[%clk 0:01:08]}  Na5 {[%clk 0:01:13]} 22. f5 {[%clk 0:00:58]}  Nxb3 {[%clk 0:01:02]} 23. Qxb3 {[%clk 0:00:57]}  Nf8 {[%clk 0:00:55]} 24. Ra7 {[%clk 0:00:48]}  d5 {[%clk 0:00:25]} 25. e5 {[%clk 0:00:47]}  Qh4 {[%clk 0:00:22]} 26. Qxd5 {[%clk 0:00:42]}  Re7 {[%clk 0:00:11]} 27. Rxe7 {[%clk 0:00:36]}  Qxe7 {[%clk 0:00:08]} 28. Rxg7+ {[%clk 0:00:37]}  Kh8 {[%clk 0:00:08]} 29. Bg5 {[%clk 0:00:33]}  Qb7 {[%clk 0:00:02]} 30. Bf6 {[%clk 0:00:19]} 1-0


[Site "https://www.chess.com"]

[Event "Titled Tuesday Blitz November 29 Early 2022"]
[White "Bashirli, Saadat"]
[Black "Sztokbant, Bernardo Vainzoff"]
[WhiteFideId "13429990"]
[BlackFideId "2115956"]
[WhiteElo "1408"]
[BlackElo "2228"]
[Result "1-0"]
[Round "07"]
[TimeControl "180+1"]
[Date "2022.11.30"]
[WhiteClock "0:00:37"]
[BlackClock "0:00:06"]

1. d4 {[%clk 0:03:00]}  d5 {[%clk 0:03:00]} 2. c4 {[%clk 0:03:01]}  dxc4 {[%clk 0:02:59]} 3. Nf3 {[%clk 0:02:57]}  Nf6 {[%clk 0:02:59]} 4. e3 {[%clk 0:02:57]}  e6 {[%clk 0:02:59]} 5. Bxc4 {[%clk 0:02:57]}  a6 {[%clk 0:02:59]} 6. Nc3 {[%clk 0:02:58]}  b5 {[%clk 0:02:59]} 7. Bd3 {[%clk 0:02:57]}  Bb7 {[%clk 0:02:59]} 8. O-O {[%clk 0:02:57]}  Be7 {[%clk 0:03:00]} 9. Qc2 {[%clk 0:02:55]}  O-O {[%clk 0:02:59]} 10. e4 {[%clk 0:02:54]}  h6 {[%clk 0:02:59]} 11. Bf4 {[%clk 0:02:54]}  Nbd7 {[%clk 0:02:59]} 12. Rad1 {[%clk 0:02:52]}  c5 {[%clk 0:02:51]} 13. Rfe1 {[%clk 0:02:34]}  cxd4 {[%clk 0:02:47]} 14. Ne2 {[%clk 0:02:31]}  Rc8 {[%clk 0:02:36]} 15. Qb3 {[%clk 0:02:28]}  Nc5 {[%clk 0:02:27]} 16. Qc2 {[%clk 0:02:27]}  Ncxe4 {[%clk 0:02:25]} 17. Qb1 {[%clk 0:02:26]}  Qb6 {[%clk 0:01:55]} 18. Nexd4 {[%clk 0:02:22]}  Nc5 {[%clk 0:01:28]} 19. Bc2 {[%clk 0:02:18]}  Rfd8 {[%clk 0:01:17]} 20. Ne5 {[%clk 0:02:14]}  Bd5 {[%clk 0:01:11]} 21. h3 {[%clk 0:02:00]}  Qb7 {[%clk 0:01:11]} 22. Nef3 {[%clk 0:01:55]}  Nce4 {[%clk 0:01:01]} 23. Be5 {[%clk 0:01:40]}  Ng5 {[%clk 0:00:52]} 24. Nxg5 {[%clk 0:01:32]}  hxg5 {[%clk 0:00:53]} 25. f3 {[%clk 0:01:28]}  Qb6 {[%clk 0:00:46]} 26. Kh2 {[%clk 0:01:26]}  Bd6 {[%clk 0:00:38]} 27. Qc1 {[%clk 0:01:12]}  Bxe5+ {[%clk 0:00:25]} 28. Rxe5 {[%clk 0:01:13]}  Be4 {[%clk 0:00:14]} 29. fxe4 {[%clk 0:01:08]}  Rxd4 {[%clk 0:00:11]} 30. Rxd4 {[%clk 0:01:02]}  Qxd4 {[%clk 0:00:12]} 31. Rxg5 {[%clk 0:01:02]}  Qc4 {[%clk 0:00:07]} 32. Qf4 {[%clk 0:00:57]}  Ne8 {[%clk 0:00:06]} 33. Bb3 {[%clk 0:00:55]}  Qc7 {[%clk 0:00:06]} 34. e5 {[%clk 0:00:51]}  Qc1 {[%clk 0:00:05]} 35. Qg4 {[%clk 0:00:43]}  Qe3 {[%clk 0:00:05]} 36. Bxe6 {[%clk 0:00:40]}  Rc1 {[%clk 0:00:05]} 37. Bxf7+ {[%clk 0:00:36]}  Kxf7 {[%clk 0:00:06]} 38. Qd7+ {[%clk 0:00:36]}  Kf8 {[%clk 0:00:05]} 39. Rf5+ {[%clk 0:00:35]}  Kg8 {[%clk 0:00:05]} 40. Qxe8+ {[%clk 0:00:36]}  Kh7 {[%clk 0:00:06]} 41. Rh5+ {[%clk 0:00:36]}  Qh6 {[%clk 0:00:06]} 42. Rxh6+ {[%clk 0:00:37]} 1-0


[Site "https://www.chess.com"]

[Event "Titled Tuesday Blitz November 29 Early 2022"]
[White "Baskakov, Egor"]
[Black "Dubov, Daniil"]
[WhiteFideId "24197866"]
[BlackFideId "24126055"]
[WhiteElo "2864"]
[BlackElo "3066"]
[Result "0-1"]
[Round "07"]
[TimeControl "180+1"]
[Date "2022.11.30"]
[WhiteClock "0:02:04"]
[BlackClock "0:01:19"]

1. e4 {[%clk 0:03:00]}  c5 {[%clk 0:02:59]} 2. Nf3 {[%clk 0:02:59]}  e6 {[%clk 0:03:00]} 3. Be2 {[%clk 0:02:59]}  Nc6 {[%clk 0:02:59]} 4. c4 {[%clk 0:02:59]}  g5 {[%clk 0:02:56]} 5. h3 {[%clk 0:02:59]}  Bg7 {[%clk 0:02:56]} 6. Nc3 {[%clk 0:02:59]}  h6 {[%clk 0:02:54]} 7. d3 {[%clk 0:03:00]}  d6 {[%clk 0:02:52]} 8. Be3 {[%clk 0:02:59]}  Nd4 {[%clk 0:02:51]} 9. O-O {[%clk 0:02:59]}  Ne7 {[%clk 0:02:50]} 10. Qd2 {[%clk 0:02:55]}  Ng6 {[%clk 0:02:43]} 11. Nb5 {[%clk 0:02:50]}  e5 {[%clk 0:02:33]} 12. Bxd4 {[%clk 0:02:45]}  exd4 {[%clk 0:02:27]} 13. Nh2 {[%clk 0:02:43]}  h5 {[%clk 0:02:26]} 14. b4 {[%clk 0:02:40]}  a6 {[%clk 0:02:24]} 15. Na3 {[%clk 0:02:39]}  g4 {[%clk 0:02:09]} 16. g3 {[%clk 0:02:34]}  Be5 {[%clk 0:01:49]} 17. hxg4 {[%clk 0:02:31]}  h4 {[%clk 0:01:49]} 18. g5 {[%clk 0:02:11]}  hxg3 {[%clk 0:01:42]} 19. Ng4 {[%clk 0:02:12]}  Bxg4 {[%clk 0:01:37]} 20. Bxg4 {[%clk 0:02:12]}  Bf4 {[%clk 0:01:29]} 21. Qe2 {[%clk 0:02:11]}  g2 {[%clk 0:01:25]} 22. Kxg2 {[%clk 0:02:09]}  Rh2+ {[%clk 0:01:24]} 23. Kg1 {[%clk 0:02:06]}  Qxg5 {[%clk 0:01:23]} 24. bxc5 {[%clk 0:02:04]}  Rh1+ {[%clk 0:01:19]} 0-1


[Site "https://www.chess.com"]